[Event "Titled Tuesday Blitz December 14 2021"]
[White "Mirzoev, Azer"]
[Black "Martinez Alcantara, Jose Eduardo"]
[WhiteFideId "13400304"]
[BlackFideId "3805662"]
[WhiteElo "2525"]
[BlackElo "2690"]
[Result "0-1"]
[Round "04"]
[TimeControl "180+1"]
[Date "2021.12.14"]
[WhiteClock "0:00:16"]
[BlackClock "0:00:56"]

1. d4 {[%clk 0:03:00]}  d5 {[%clk 0:03:00]} 2. Nf3 {[%clk 0:03:00]}  Nf6 {[%clk 0:03:00]} 3. Bf4 {[%clk 0:03:00]}  e6 {[%clk 0:03:00]} 4. e3 {[%clk 0:03:00]}  Bd6 {[%clk 0:03:01]} 5. Bg3 {[%clk 0:03:00]}  c5 {[%clk 0:03:01]} 6. Nbd2 {[%clk 0:02:59]}  Qc7 {[%clk 0:02:54]} 7. c4 {[%clk 0:02:57]}  Bxg3 {[%clk 0:02:50]} 8. hxg3 {[%clk 0:02:57]}  cxd4 {[%clk 0:02:50]} 9. Nxd4 {[%clk 0:02:57]}  Nc6 {[%clk 0:02:45]} 10. cxd5 {[%clk 0:02:52]}  Nxd4 {[%clk 0:02:41]} 11. Qa4+ {[%clk 0:02:51]}  Qd7 {[%clk 0:02:30]} 12. Qxd4 {[%clk 0:02:49]}  Qxd5 {[%clk 0:02:31]} 13. Qxd5 {[%clk 0:02:44]}  Nxd5 {[%clk 0:02:32]} 14. Rc1 {[%clk 0:02:44]}  Bd7 {[%clk 0:02:25]} 15. Nb3 {[%clk 0:02:36]}  Ke7 {[%clk 0:02:06]} 16. Bd3 {[%clk 0:02:32]}  h6 {[%clk 0:02:06]} 17. a3 {[%clk 0:02:28]}  Rac8 {[%clk 0:02:05]} 18. Kd2 {[%clk 0:02:24]}  b6 {[%clk 0:02:03]} 19. Nd4 {[%clk 0:02:21]}  Rhd8 {[%clk 0:01:48]} 20. Ke2 {[%clk 0:02:12]}  Rc5 {[%clk 0:01:40]} 21. Nb3 {[%clk 0:02:04]}  Rcc8 {[%clk 0:01:25]} 22. Ba6 {[%clk 0:01:56]}  Rxc1 {[%clk 0:01:22]} 23. Rxc1 {[%clk 0:01:56]}  e5 {[%clk 0:01:23]} 24. e4 {[%clk 0:01:45]}  Nf6 {[%clk 0:01:23]} 25. Rc7 {[%clk 0:01:32]}  Nxe4 {[%clk 0:01:23]} 26. Rxa7 {[%clk 0:01:32]}  Nd6 {[%clk 0:01:24]} 27. Nd2 {[%clk 0:01:23]}  Ke6 {[%clk 0:01:14]} 28. Bd3 {[%clk 0:01:17]}  f5 {[%clk 0:01:06]} 29. f3 {[%clk 0:01:16]}  Rc8 {[%clk 0:01:03]} 30. Ra6 {[%clk 0:01:09]}  Rb8 {[%clk 0:01:02]} 31. a4 {[%clk 0:01:05]}  g6 {[%clk 0:01:02]} 32. b4 {[%clk 0:01:04]}  Bc8 {[%clk 0:00:55]} 33. Ra7 {[%clk 0:01:04]}  Bb7 {[%clk 0:00:56]} 34. Bc2 {[%clk 0:00:51]}  Nc8 {[%clk 0:00:54]} 35. Bb3+ {[%clk 0:00:42]}  Kf6 {[%clk 0:00:55]} 36. Rxb7 {[%clk 0:00:33]}  Rxb7 {[%clk 0:00:55]} 37. Nc4 {[%clk 0:00:32]}  b5 {[%clk 0:00:56]} 38. Na5 {[%clk 0:00:31]}  Rb6 {[%clk 0:00:56]} 39. axb5 {[%clk 0:00:29]}  Rxb5 {[%clk 0:00:57]} 40. Nc6 {[%clk 0:00:30]}  Rb6 {[%clk 0:00:55]} 41. Ba4 {[%clk 0:00:28]}  Ne7 {[%clk 0:00:53]} 42. Nxe7 {[%clk 0:00:18]}  Kxe7 {[%clk 0:00:54]} 43. b5 {[%clk 0:00:18]}  Kd6 {[%clk 0:00:55]} 44. Kd3 {[%clk 0:00:15]}  Kc5 {[%clk 0:00:55]} 45. Kc3 {[%clk 0:00:16]}  Rd6 {[%clk 0:00:56]} 0-1


[Site "https://www.chess.com"]

[Event "Titled Tuesday Blitz December 14 2021"]
[White "Mitusov, Semen"]
[Black "Moskalenko, Alexander"]
[WhiteFideId "14151049"]
[BlackFideId "4155351"]
[WhiteElo "2246"]
[BlackElo "2515"]
[Result "0-1"]
[Round "04"]
[TimeControl "180+1"]
[Date "2021.12.15"]
[WhiteClock "0:00:05"]
[BlackClock "0:00:21"]

1. e4 {[%clk 0:03:00]}  c6 {[%clk 0:02:59]} 2. d4 {[%clk 0:03:00]}  d5 {[%clk 0:02:59]} 3. e5 {[%clk 0:03:00]}  c5 {[%clk 0:02:52]} 4. dxc5 {[%clk 0:03:01]}  e6 {[%clk 0:02:51]} 5. Nf3 {[%clk 0:02:56]}  Bxc5 {[%clk 0:02:50]} 6. Bd3 {[%clk 0:02:57]}  Ne7 {[%clk 0:02:49]} 7. Nbd2 {[%clk 0:02:57]}  Ng6 {[%clk 0:02:46]} 8. Nb3 {[%clk 0:02:57]}  Bb6 {[%clk 0:02:45]} 9. O-O {[%clk 0:02:56]}  Nc6 {[%clk 0:02:46]} 10. Re1 {[%clk 0:02:53]}  Bc7 {[%clk 0:02:45]} 11. Bg5 {[%clk 0:02:48]}  f6 {[%clk 0:02:40]} 12. exf6 {[%clk 0:02:46]}  gxf6 {[%clk 0:02:41]} 13. Bh6 {[%clk 0:02:41]}  Kf7 {[%clk 0:02:42]} 14. h4 {[%clk 0:02:33]}  e5 {[%clk 0:02:37]} 15. h5 {[%clk 0:02:23]}  Nge7 {[%clk 0:02:37]} 16. Be2 {[%clk 0:02:04]}  Rg8 {[%clk 0:02:26]} 17. Nh4 {[%clk 0:01:58]}  Bb6 {[%clk 0:02:14]} 18. c4 {[%clk 0:01:50]}  Be6 {[%clk 0:02:12]} 19. cxd5 {[%clk 0:01:44]}  Qxd5 {[%clk 0:02:13]} 20. Qc2 {[%clk 0:01:41]}  Nf5 {[%clk 0:02:05]} 21. Bf3 {[%clk 0:01:37]}  Nxh4 {[%clk 0:01:46]} 22. Qxh7+ {[%clk 0:01:31]}  Ke8 {[%clk 0:01:43]} 23. Bxd5 {[%clk 0:01:31]}  Bxd5 {[%clk 0:01:44]} 24. Bg7 {[%clk 0:01:19]}  Kf7 {[%clk 0:01:35]} 25. h6 {[%clk 0:01:10]}  Nxg2 {[%clk 0:01:28]} 26. Red1 {[%clk 0:01:08]}  Nd4 {[%clk 0:01:28]} 27. Nxd4 {[%clk 0:01:04]}  Bxd4 {[%clk 0:01:29]} 28. Rac1 {[%clk 0:01:00]}  Nh4 {[%clk 0:01:08]} 29. Rc7+ {[%clk 0:00:55]}  Ke6 {[%clk 0:01:08]} 30. Rxd4 {[%clk 0:00:42]}  exd4 {[%clk 0:01:02]} 31. Qd3 {[%clk 0:00:41]}  Nf5 {[%clk 0:00:58]} 32. Qh3 {[%clk 0:00:31]}  Rac8 {[%clk 0:00:51]} 33. Rxc8 {[%clk 0:00:30]}  Rxc8 {[%clk 0:00:51]} 34. f3 {[%clk 0:00:17]}  d3 {[%clk 0:00:49]} 35. Qf1 {[%clk 0:00:14]}  Bc4 {[%clk 0:00:40]} 36. Qe1+ {[%clk 0:00:13]}  Kf7 {[%clk 0:00:40]} 37. Qb4 {[%clk 0:00:07]}  Ba6 {[%clk 0:00:33]} 38. Qb3+ {[%clk 0:00:06]}  Kg6 {[%clk 0:00:33]} 39. Qb4 {[%clk 0:00:06]}  Rc1+ {[%clk 0:00:27]} 40. Kg2 {[%clk 0:00:06]}  Rc2+ {[%clk 0:00:28]} 41. Kh3 {[%clk 0:00:06]}  Nxg7 {[%clk 0:00:23]} 42. Qg4+ {[%clk 0:00:06]}  Kxh6 {[%clk 0:00:23]} 43. Qf4+ {[%clk 0:00:07]}  Kg6 {[%clk 0:00:23]} 44. Qg4+ {[%clk 0:00:07]}  Kf7 {[%clk 0:00:20]} 45. Qd7+ {[%clk 0:00:07]}  Kf8 {[%clk 0:00:20]} 46. Qd8+ {[%clk 0:00:07]}  Ne8 {[%clk 0:00:20]} 47. Qd4 {[%clk 0:00:07]}  Rc6 {[%clk 0:00:19]} 48. Qb4+ {[%clk 0:00:07]}  Rd6 {[%clk 0:00:19]} 49. Qd2 {[%clk 0:00:06]}  b6 {[%clk 0:00:19]} 50. Qh6+ {[%clk 0:00:06]}  Ke7 {[%clk 0:00:19]} 51. Qe3+ {[%clk 0:00:07]}  Kd8 {[%clk 0:00:20]} 52. Qd2 {[%clk 0:00:06]}  Bc8+ {[%clk 0:00:21]} 53. Kg3 {[%clk 0:00:06]}  Be6 {[%clk 0:00:22]} 54. Kf4 {[%clk 0:00:06]}  Ke7 {[%clk 0:00:23]} 55. b3 {[%clk 0:00:05]}  Nc7 {[%clk 0:00:23]} 56. Kg3 {[%clk 0:00:05]}  a5 {[%clk 0:00:22]} 57. Kf2 {[%clk 0:00:04]}  Nb5 {[%clk 0:00:22]} 58. Ke1 {[%clk 0:00:04]}  Na7 {[%clk 0:00:19]} 59. Kd1 {[%clk 0:00:04]}  Nc6 {[%clk 0:00:20]} 60. Qh6 {[%clk 0:00:04]}  Ne5 {[%clk 0:00:20]} 61. Qg7+ {[%clk 0:00:04]}  Nf7 {[%clk 0:00:21]} 62. f4 {[%clk 0:00:04]}  d2 {[%clk 0:00:22]} 63. Qg3 {[%clk 0:00:04]}  Bf5 {[%clk 0:00:21]} 64. Qe3+ {[%clk 0:00:04]}  Kf8 {[%clk 0:00:22]} 65. Qg3 {[%clk 0:00:04]}  Bc2+ {[%clk 0:00:21]} 66. Kxc2 {[%clk 0:00:04]}  d1=Q+ {[%clk 0:00:22]} 67. Kc3 {[%clk 0:00:05]}  Qd2+ {[%clk 0:00:21]} 68. Kc4 {[%clk 0:00:05]}  Qb4# {[%clk 0:00:21]} 0-1


[Site "https://www.chess.com"]

[Event "Titled Tuesday Blitz December 14 2021"]
[White "Neiksans, Arturs"]
[Black "Pichot, Alan"]
[WhiteFideId "11601388"]
[BlackFideId "110973"]
[WhiteElo "2790"]
[BlackElo "2976"]
[Result "0-1"]
[Round "04"]
[TimeControl "180+1"]
[Date "2021.12.14"]
[WhiteClock "0:00:02"]
[BlackClock "0:00:12"]

1. e4 {[%clk 0:03:00]}  c5 {[%clk 0:02:57]} 2. Nf3 {[%clk 0:03:00]}  e6 {[%clk 0:02:57]} 3. d3 {[%clk 0:03:00]}  Nc6 {[%clk 0:02:57]} 4. g3 {[%clk 0:02:59]}  Nf6 {[%clk 0:02:58]} 5. Bg2 {[%clk 0:02:59]}  d5 {[%clk 0:02:59]} 6. Nbd2 {[%clk 0:02:59]}  Be7 {[%clk 0:02:59]} 7. O-O {[%clk 0:02:58]}  O-O {[%clk 0:03:00]} 8. Re1 {[%clk 0:02:58]}  Qc7 {[%clk 0:03:00]} 9. e5 {[%clk 0:02:56]}  Nd7 {[%clk 0:03:00]} 10. Qe2 {[%clk 0:02:56]}  b5 {[%clk 0:03:01]} 11. Nf1 {[%clk 0:02:56]}  Bb7 {[%clk 0:03:01]} 12. h4 {[%clk 0:02:55]}  Rfc8 {[%clk 0:03:01]} 13. Bf4 {[%clk 0:02:55]}  a5 {[%clk 0:03:01]} 14. Ne3 {[%clk 0:02:55]}  Qd8 {[%clk 0:03:01]} 15. c4 {[%clk 0:02:43]}  Nd4 {[%clk 0:02:42]} 16. Nxd4 {[%clk 0:02:38]}  cxd4 {[%clk 0:02:43]} 17. Nxd5 {[%clk 0:02:36]}  exd5 {[%clk 0:02:41]} 18. cxd5 {[%clk 0:02:37]}  Nc5 {[%clk 0:02:36]} 19. d6 {[%clk 0:02:35]}  Bxg2 {[%clk 0:02:36]} 20. Kxg2 {[%clk 0:02:33]}  Bf8 {[%clk 0:02:36]} 21. Qf3 {[%clk 0:02:17]}  Qd7 {[%clk 0:02:33]} 22. Rac1 {[%clk 0:02:15]}  Ne6 {[%clk 0:02:32]} 23. Bd2 {[%clk 0:02:13]}  b4 {[%clk 0:02:30]} 24. Qd5 {[%clk 0:02:09]}  Rab8 {[%clk 0:02:25]} 25. Rxc8 {[%clk 0:01:42]}  Rxc8 {[%clk 0:02:19]} 26. Rc1 {[%clk 0:01:41]}  Rxc1 {[%clk 0:01:35]} 27. Bxc1 {[%clk 0:01:41]}  Qc8 {[%clk 0:01:36]} 28. Bd2 {[%clk 0:01:27]}  Qc2 {[%clk 0:01:34]} 29. Bg5 {[%clk 0:01:26]}  h6 {[%clk 0:01:30]} 30. Be7 {[%clk 0:01:22]}  Bxe7 {[%clk 0:01:22]} 31. dxe7 {[%clk 0:01:22]}  Qc8 {[%clk 0:01:22]} 32. f4 {[%clk 0:01:11]}  Qe8 {[%clk 0:01:16]} 33. Qd6 {[%clk 0:01:07]}  g6 {[%clk 0:01:11]} 34. h5 {[%clk 0:01:00]}  Ng7 {[%clk 0:01:08]} 35. g4 {[%clk 0:00:46]}  gxh5 {[%clk 0:00:44]} 36. f5 {[%clk 0:00:39]}  hxg4 {[%clk 0:00:43]} 37. Qd8 {[%clk 0:00:39]}  Kh7 {[%clk 0:00:40]} 38. f6 {[%clk 0:00:34]}  Qc6+ {[%clk 0:00:40]} 39. Kh2 {[%clk 0:00:20]}  Qc2+ {[%clk 0:00:38]} 40. Kg1 {[%clk 0:00:18]}  Qd1+ {[%clk 0:00:38]} 41. Kf2 {[%clk 0:00:15]}  Qd2+ {[%clk 0:00:38]} 42. Kg3 {[%clk 0:00:05]}  Qe3+ {[%clk 0:00:14]} 43. Kg2 {[%clk 0:00:03]}  Qe2+ {[%clk 0:00:12]} 44. Kg1 {[%clk 0:00:02]}  g3 {[%clk 0:00:12]} 0-1


[Site "https://www.chess.com"]

[Event "Titled Tuesday Blitz December 14 2021"]
[White "Potapova, Margarita"]
[Black "Wagner, Dennis"]
[WhiteFideId "14126869"]
[BlackFideId "24650684"]
[WhiteElo "2209"]
[BlackElo "2355"]
[Result "0-1"]
[Round "04"]
[TimeControl "180+1"]
[Date "2021.12.15"]
[WhiteClock "0:00:05"]
[BlackClock "0:00:09"]

1. d4 {[%clk 0:03:00]}  Nf6 {[%clk 0:02:59]} 2. c4 {[%clk 0:03:01]}  e6 {[%clk 0:02:58]} 3. Nc3 {[%clk 0:03:01]}  Bb4 {[%clk 0:02:57]} 4. Qc2 {[%clk 0:03:02]}  d5 {[%clk 0:02:49]} 5. cxd5 {[%clk 0:03:02]}  exd5 {[%clk 0:02:48]} 6. Bg5 {[%clk 0:03:02]}  h6 {[%clk 0:02:46]} 7. Bh4 {[%clk 0:03:02]}  O-O {[%clk 0:02:40]} 8. e3 {[%clk 0:03:02]}  Be6 {[%clk 0:02:40]} 9. Bd3 {[%clk 0:03:02]}  c5 {[%clk 0:02:37]} 10. dxc5 {[%clk 0:03:01]}  Nbd7 {[%clk 0:02:37]} 11. Ne2 {[%clk 0:02:56]}  Nxc5 {[%clk 0:02:35]} 12. O-O {[%clk 0:02:57]}  Rc8 {[%clk 0:02:31]} 13. Rad1 {[%clk 0:02:21]}  g5 {[%clk 0:02:15]} 14. Bg3 {[%clk 0:02:20]}  Nce4 {[%clk 0:01:58]} 15. Be5 {[%clk 0:02:19]}  Ng4 {[%clk 0:01:51]} 16. Bd4 {[%clk 0:01:37]}  Qc7 {[%clk 0:01:50]} 17. g3 {[%clk 0:01:13]}  Nxc3 {[%clk 0:01:24]} 18. bxc3 {[%clk 0:01:12]}  Ne5 {[%clk 0:01:04]} 19. f4 {[%clk 0:00:36]}  Nxd3 {[%clk 0:00:52]} 20. Qxd3 {[%clk 0:00:37]}  Be7 {[%clk 0:00:46]} 21. f5 {[%clk 0:00:21]}  Bd7 {[%clk 0:00:41]} 22. f6 {[%clk 0:00:14]}  Bd6 {[%clk 0:00:41]} 23. e4 {[%clk 0:00:08]}  dxe4 {[%clk 0:00:37]} 24. Qxe4 {[%clk 0:00:09]}  Rfe8 {[%clk 0:00:37]} 25. Qf3 {[%clk 0:00:08]}  Bc6 {[%clk 0:00:16]} 26. Qh5 {[%clk 0:00:08]}  Rxe2 {[%clk 0:00:17]} 27. Qxe2 {[%clk 0:00:07]}  Bxg3 {[%clk 0:00:18]} 28. Qh5 {[%clk 0:00:06]}  Kh7 {[%clk 0:00:03]} 29. Qh3 {[%clk 0:00:05]}  Bf4 {[%clk 0:00:02]} 30. Qf5+ {[%clk 0:00:05]}  Kg8 {[%clk 0:00:01]} 31. Qh3 {[%clk 0:00:06]}  Kh7 {[%clk 0:00:01]} 32. Qf5+ {[%clk 0:00:06]}  Kg8 {[%clk 0:00:02]} 33. Qh3 {[%clk 0:00:05]}  g4 {[%clk 0:00:02]} 34. Qh5 {[%clk 0:00:05]}  Bg5 {[%clk 0:00:03]} 35. Qxg4 {[%clk 0:00:04]}  Kh7 {[%clk 0:00:04]} 36. Rde1 {[%clk 0:00:04]}  Rg8 {[%clk 0:00:04]} 37. Qf5+ {[%clk 0:00:04]}  Kh8 {[%clk 0:00:05]} 38. Kf2 {[%clk 0:00:02]}  Bh4+ {[%clk 0:00:05]} 39. Ke2 {[%clk 0:00:03]}  Qxh2+ {[%clk 0:00:05]} 40. Kd1 {[%clk 0:00:03]}  Ba4+ {[%clk 0:00:06]} 41. Kc1 {[%clk 0:00:03]}  Bg5+ {[%clk 0:00:06]} 42. Kb1 {[%clk 0:00:03]}  Bc6 {[%clk 0:00:06]} 43. Qd3 {[%clk 0:00:02]}  Qd6 {[%clk 0:00:06]} 44. Qc2 {[%clk 0:00:02]}  Bd5 {[%clk 0:00:06]} 45. Qb2 {[%clk 0:00:02]}  Qc6 {[%clk 0:00:07]} 46. Ka1 {[%clk 0:00:03]}  Be4 {[%clk 0:00:07]} 47. Rd1 {[%clk 0:00:03]}  Bg6 {[%clk 0:00:08]} 48. Rde1 {[%clk 0:00:03]}  Kh7 {[%clk 0:00:08]} 49. Rg1 {[%clk 0:00:03]}  Rd8 {[%clk 0:00:09]} 50. Rh1 {[%clk 0:00:03]}  Rd5 {[%clk 0:00:04]} 51. Reg1 {[%clk 0:00:03]}  Rb5 {[%clk 0:00:04]} 52. Qg2 {[%clk 0:00:03]}  Qxg2 {[%clk 0:00:04]} 53. Rxg2 {[%clk 0:00:04]}  Be4 {[%clk 0:00:04]} 54. Rgh2 {[%clk 0:00:04]}  Bxh1 {[%clk 0:00:05]} 55. Rxh1 {[%clk 0:00:05]}  Kg6 {[%clk 0:00:04]} 56. Re1 {[%clk 0:00:04]}  Bxf6 {[%clk 0:00:04]} 57. Rg1+ {[%clk 0:00:04]}  Bg5 {[%clk 0:00:04]} 58. c4 {[%clk 0:00:03]}  Rb4 {[%clk 0:00:04]} 59. Bxa7 {[%clk 0:00:02]}  Rxc4 {[%clk 0:00:04]} 60. Kb2 {[%clk 0:00:03]}  Rb4+ {[%clk 0:00:04]} 61. Kc3 {[%clk 0:00:03]}  Ra4 {[%clk 0:00:04]} 62. Bd4 {[%clk 0:00:02]}  Rxa2 {[%clk 0:00:04]} 63. Rb1 {[%clk 0:00:02]}  Ra3+ {[%clk 0:00:04]} 64. Kc4 {[%clk 0:00:02]}  Ra4+ {[%clk 0:00:04]} 65. Kd5 {[%clk 0:00:03]}  Ra5+ {[%clk 0:00:04]} 66. Ke4 {[%clk 0:00:03]}  Ra4 {[%clk 0:00:04]} 67. Rb6+ {[%clk 0:00:02]}  Kh5 {[%clk 0:00:03]} 68. Kd3 {[%clk 0:00:02]}  Kg4 {[%clk 0:00:02]} 69. Rxb7 {[%clk 0:00:02]}  f5 {[%clk 0:00:03]} 70. Rf7 {[%clk 0:00:03]}  f4 {[%clk 0:00:03]} 71. Bc5 {[%clk 0:00:03]}  f3 {[%clk 0:00:02]} 72. Rf8 {[%clk 0:00:02]}  Ra6 {[%clk 0:00:02]} 73. Bd4 {[%clk 0:00:02]}  Rd6 {[%clk 0:00:03]} 74. Kc3 {[%clk 0:00:02]}  Rd7 {[%clk 0:00:03]} 75. Kc4 {[%clk 0:00:03]}  Kg3 {[%clk 0:00:04]} 76. Rg8 {[%clk 0:00:02]}  Kg2 {[%clk 0:00:04]} 77. Rf8 {[%clk 0:00:02]}  Rxd4+ {[%clk 0:00:04]} 78. Kxd4 {[%clk 0:00:02]}  f2 {[%clk 0:00:05]} 79. Ke4 {[%clk 0:00:02]}  h5 {[%clk 0:00:05]} 80. Kf5 {[%clk 0:00:02]}  f1=Q+ {[%clk 0:00:05]} 81. Kxg5 {[%clk 0:00:02]}  Qxf8 {[%clk 0:00:05]} 82. Kh4 {[%clk 0:00:02]}  Qg7 {[%clk 0:00:06]} 83. Kxh5 {[%clk 0:00:03]}  Qg3 {[%clk 0:00:06]} 84. Kh6 {[%clk 0:00:03]}  Kf3 {[%clk 0:00:07]} 85. Kh7 {[%clk 0:00:04]}  Kf4 {[%clk 0:00:07]} 86. Kh8 {[%clk 0:00:05]}  Kf5 {[%clk 0:00:08]} 87. Kh7 {[%clk 0:00:06]}  Kf6 {[%clk 0:00:08]} 88. Kh8 {[%clk 0:00:05]}  Qg7# {[%clk 0:00:09]} 0-1


[Site "https://www.chess.com"]

[Event "Titled Tuesday Blitz December 14 2021"]
[White "Rakhmanov, Aleksandr"]
[Black "Artemiev, Vladislav"]
[WhiteFideId "4173708"]
[BlackFideId "24101605"]
[WhiteElo "2500"]
[BlackElo "2830"]
[Result "0-1"]
[Round "04"]
[TimeControl "180+1"]
[Date "2021.12.14"]
[WhiteClock "0:00:11"]
[BlackClock "0:00:03"]

1. d4 {[%clk 0:03:00]}  Nf6 {[%clk 0:02:57]} 2. c4 {[%clk 0:03:01]}  g6 {[%clk 0:02:57]} 3. Nc3 {[%clk 0:03:00]}  d5 {[%clk 0:02:57]} 4. Nf3 {[%clk 0:03:00]}  Bg7 {[%clk 0:02:57]} 5. cxd5 {[%clk 0:03:01]}  Nxd5 {[%clk 0:02:57]} 6. Qa4+ {[%clk 0:03:02]}  Bd7 {[%clk 0:02:48]} 7. Qa3 {[%clk 0:02:59]}  Bc6 {[%clk 0:02:43]} 8. e3 {[%clk 0:02:57]}  Nd7 {[%clk 0:02:40]} 9. Be2 {[%clk 0:02:56]}  O-O {[%clk 0:02:39]} 10. O-O {[%clk 0:02:56]}  e5 {[%clk 0:02:25]} 11. Rd1 {[%clk 0:02:55]}  Re8 {[%clk 0:02:00]} 12. dxe5 {[%clk 0:02:50]}  Nxc3 {[%clk 0:01:58]} 13. bxc3 {[%clk 0:02:48]}  Qc8 {[%clk 0:01:36]} 14. Nd4 {[%clk 0:01:58]}  Nxe5 {[%clk 0:01:35]} 15. Nxc6 {[%clk 0:01:58]}  Nxc6 {[%clk 0:01:34]} 16. Qb3 {[%clk 0:01:52]}  Na5 {[%clk 0:01:06]} 17. Qb4 {[%clk 0:01:39]}  b6 {[%clk 0:01:06]} 18. Bb2 {[%clk 0:01:37]}  Qe6 {[%clk 0:01:03]} 19. h3 {[%clk 0:01:16]}  Rad8 {[%clk 0:00:56]} 20. Qa4 {[%clk 0:01:15]}  c6 {[%clk 0:00:52]} 21. Bf1 {[%clk 0:01:11]}  h5 {[%clk 0:00:51]} 22. Be2 {[%clk 0:01:10]}  Bf6 {[%clk 0:00:46]} 23. Bf1 {[%clk 0:01:09]}  Bg7 {[%clk 0:00:19]} 24. Be2 {[%clk 0:01:09]}  Qe7 {[%clk 0:00:19]} 25. Bf1 {[%clk 0:01:07]}  Rxd1 {[%clk 0:00:18]} 26. Rxd1 {[%clk 0:01:07]}  Rd8 {[%clk 0:00:18]} 27. Rxd8+ {[%clk 0:00:54]}  Qxd8 {[%clk 0:00:18]} 28. Qc2 {[%clk 0:00:55]}  Qd6 {[%clk 0:00:15]} 29. Bc1 {[%clk 0:00:53]}  Qc5 {[%clk 0:00:13]} 30. Bd2 {[%clk 0:00:45]}  Nc4 {[%clk 0:00:13]} 31. Be1 {[%clk 0:00:44]}  Nd6 {[%clk 0:00:09]} 32. Qd3 {[%clk 0:00:38]}  b5 {[%clk 0:00:07]} 33. Be2 {[%clk 0:00:36]}  Be5 {[%clk 0:00:05]} 34. Bf3 {[%clk 0:00:34]}  Kg7 {[%clk 0:00:05]} 35. g3 {[%clk 0:00:32]}  a5 {[%clk 0:00:02]} 36. Kg2 {[%clk 0:00:32]}  a4 {[%clk 0:00:03]} 37. h4 {[%clk 0:00:29]}  Bf6 {[%clk 0:00:03]} 38. Be2 {[%clk 0:00:28]}  Nc4 {[%clk 0:00:03]} 39. Bf3 {[%clk 0:00:27]}  Ne5 {[%clk 0:00:03]} 40. Qd4 {[%clk 0:00:20]}  Qe7 {[%clk 0:00:04]} 41. Qe4 {[%clk 0:00:20]}  Qe6 {[%clk 0:00:03]} 42. Qc2 {[%clk 0:00:16]}  Nxf3 {[%clk 0:00:03]} 43. Kxf3 {[%clk 0:00:17]}  Qc4 {[%clk 0:00:04]} 44. Qe2 {[%clk 0:00:13]}  Qg4+ {[%clk 0:00:03]} 45. Kg2 {[%clk 0:00:11]}  Qxe2 {[%clk 0:00:03]} 0-1


[Site "https://www.chess.com"]

[Event "Titled Tuesday Blitz December 14 2021"]
[White "Rustemov, Alexander"]
[Black "Petrovskyi, Vadym"]
[WhiteFideId "4119002"]
[BlackFideId "14165210"]
[WhiteElo "2870"]
[BlackElo "2377"]
[Result "0-1"]
[Round "04"]
[TimeControl "180+1"]
[Date "2021.12.14"]
[WhiteClock "0:00:08"]
[BlackClock "0:00:05"]

1. d4 {[%clk 0:03:00]}  Nf6 {[%clk 0:03:00]} 2. c4 {[%clk 0:03:00]}  e6 {[%clk 0:03:00]} 3. Nf3 {[%clk 0:03:00]}  d5 {[%clk 0:02:59]} 4. Nc3 {[%clk 0:03:00]}  Be7 {[%clk 0:02:59]} 5. Bg5 {[%clk 0:02:59]}  O-O {[%clk 0:02:59]} 6. e3 {[%clk 0:02:59]}  Nbd7 {[%clk 0:02:59]} 7. Qc2 {[%clk 0:02:59]}  c5 {[%clk 0:02:55]} 8. cxd5 {[%clk 0:02:56]}  Nxd5 {[%clk 0:02:50]} 9. Bxe7 {[%clk 0:02:51]}  Nxe7 {[%clk 0:02:45]} 10. Bb5 {[%clk 0:02:47]}  Nc6 {[%clk 0:02:27]} 11. Bxc6 {[%clk 0:02:43]}  bxc6 {[%clk 0:02:26]} 12. O-O {[%clk 0:02:42]}  cxd4 {[%clk 0:02:24]} 13. Nxd4 {[%clk 0:02:40]}  Bb7 {[%clk 0:02:24]} 14. f3 {[%clk 0:02:19]}  c5 {[%clk 0:02:18]} 15. Nb3 {[%clk 0:02:13]}  Qg5 {[%clk 0:02:12]} 16. e4 {[%clk 0:02:07]}  Rfd8 {[%clk 0:02:11]} 17. Rfd1 {[%clk 0:02:06]}  Ne5 {[%clk 0:02:05]} 18. Kh1 {[%clk 0:01:49]}  Nc4 {[%clk 0:01:57]} 19. Qf2 {[%clk 0:01:45]}  Ne3 {[%clk 0:01:23]} 20. Re1 {[%clk 0:01:34]}  Nc4 {[%clk 0:01:07]} 21. Rad1 {[%clk 0:01:33]}  Rxd1 {[%clk 0:01:03]} 22. Rxd1 {[%clk 0:01:33]}  Rc8 {[%clk 0:01:03]} 23. h4 {[%clk 0:01:24]}  Qe7 {[%clk 0:01:02]} 24. Kg1 {[%clk 0:01:14]}  h6 {[%clk 0:01:01]} 25. Rc1 {[%clk 0:01:04]}  Ne5 {[%clk 0:00:59]} 26. Rd1 {[%clk 0:01:02]}  Nc4 {[%clk 0:00:59]} 27. g3 {[%clk 0:00:56]}  h5 {[%clk 0:00:41]} 28. Kg2 {[%clk 0:00:56]}  g6 {[%clk 0:00:41]} 29. Nc1 {[%clk 0:00:46]}  f5 {[%clk 0:00:35]} 30. exf5 {[%clk 0:00:44]}  gxf5 {[%clk 0:00:36]} 31. Nd3 {[%clk 0:00:44]}  e5 {[%clk 0:00:31]} 32. Re1 {[%clk 0:00:41]}  e4 {[%clk 0:00:29]} 33. Kh2 {[%clk 0:00:37]}  e3 {[%clk 0:00:21]} 34. Qe2 {[%clk 0:00:37]}  Rd8 {[%clk 0:00:20]} 35. b3 {[%clk 0:00:27]}  Ne5 {[%clk 0:00:20]} 36. Nxe5 {[%clk 0:00:27]}  Rd2 {[%clk 0:00:19]} 37. f4 {[%clk 0:00:13]}  Ba8 {[%clk 0:00:12]} 38. Kh3 {[%clk 0:00:12]}  Rxe2 {[%clk 0:00:10]} 39. Rxe2 {[%clk 0:00:13]}  Qb7 {[%clk 0:00:10]} 40. Rh2 {[%clk 0:00:11]}  Qb4 {[%clk 0:00:09]} 41. Ne2 {[%clk 0:00:12]}  Qe1 {[%clk 0:00:08]} 42. g4 {[%clk 0:00:11]}  Qf1+ {[%clk 0:00:07]} 43. Kg3 {[%clk 0:00:11]}  hxg4 {[%clk 0:00:07]} 44. h5 {[%clk 0:00:12]}  Bf3 {[%clk 0:00:07]} 45. h6 {[%clk 0:00:12]}  Kh7 {[%clk 0:00:06]} 46. Nf7 {[%clk 0:00:12]}  Bxe2 {[%clk 0:00:05]} 47. Ng5+ {[%clk 0:00:12]}  Kg6 {[%clk 0:00:06]} 48. h7 {[%clk 0:00:11]}  Qe1+ {[%clk 0:00:05]} 49. Kg2 {[%clk 0:00:10]}  Bf1+ {[%clk 0:00:05]} 50. Kg1 {[%clk 0:00:08]}  Bh3# {[%clk 0:00:05]} 0-1


[Site "https://www.chess.com"]